{"text_format":"1","workbook":"xlsx","n_sheets":1,"sheets":["Salim"],"not_rendered":{"charts":0,"images":0,"macros":1,"external_links":0,"defined_names":0,"comments":0,"pivot_tables":0},"unopened":[],"bounds":{"document_bytes":16777216,"sheet_cells":100000,"rows_first":2000,"rows_last":500,"rows_between":2000,"halvings":0,"cell_chars":16384,"cell_head_chars":4096},"cells_cut":0,"cells_raw":0,"read":"whole","date_system":"1900"}

{"sheet":"Salim","index":0,"n_rows":24,"n_cols":3,"rows_kept":24,"cut":false,"hidden":false,"merged":[]}
["Name","Unique Letters","Function"]
["احمد   محمد ياسين",{"$f":"Salim_Letter(A2)","v":"ا ح م د ي س ن"}," =Salim_Letter(A2)"]
["عبد السميع عبد الحافظ عبد الله ",{"$f":"Salim_Letter(A3)","v":"ع ب د ا ل س م ي ح ف ظ ه"}]
["نعيم بالع كرشو","ن ع ي م ب ا ل ك ر ش و"]
["سامر  زارع باذنجاني","س ا م ر ز ع ب ذ ن ج ي"]
[" عبد السلام محمد نص لسان ","ع ب د ا ل س م ح ن ص"]
["تامر عبد الجليل سامع صوتو","ت ا م ر ع ب د ل ج ي س ص و"]
["محمود ضايع اسمو","م ح و د ض ا ي ع س"]
["نعيم بالع كرشو","ن ع ي م ب ا ل ك ر ش و"]
["عارف ليش مطنش","ع ا ر ف ل ي ش م ط ن"]
["عبد الشافي قابضها جد","ع ب د ا ل ش ف ي ق ض ه ج"]
["سمير كاسر ايدو","س م ي ر ك ا د و"]
["عبد الكريم فركش حالو","ع ب د ا ل ك ر ي م ف ش ح و"]
["عبد الشافي قابضها جد","ع ب د ا ل ش ف ي ق ض ه ج"]
["كميل خازق كيسو","ك م ي ل خ ا ز ق س و"]
["علي شالح صباطو","ع ل ي ش ا ح ص ب ط و"]
["شادي فارك كفو أبو دلعة","ش ا د ي ف ر ك و أ ب ل ع ة"]
["طالع نازل من بيتو","ط ا ل ع ن ز م ب ي ت و"]
["رفيق دربك عاطول","ر ف ي ق د ب ك ع ا ط و ل"]
["طارق مقلب مضبوط","ط ا ر ق م ل ب ض و"]
["شاكر ناسي حالو","ش ا ك ر ن س ي ح ل و"]
["كريم بس بالمي","ك ر ي م ب س ا ل"]
["أقرع  شعراتو","أ ق ر ع ش ا ت و"]
["جميل أبشع خلق الله","ج م ي ل أ ب ش ع خ ق ا ه"]